bitfinex/quotes_SOLUSD_20240909
["timestamp","ask_amount","ask_price","bid_price","bid_amount"]
[1725894776415,45.0,128.19,128.15,7.8031]
[1725894776416,52.8009,128.19,128.15,7.8031]
[1725894776616,52.8009,128.19,128.13,19.5102]
[1725894776617,7.8016,128.18,128.14,7.8038]
[1725894776836,45.0,128.17,128.14,7.8038]
[1725894777135,45.0,128.17,128.15,27.3113]
[1725894777338,45.0,128.17,128.05,39.0447]
[1725894777547,45.0,128.17,128.06,23.5293188]
[1725894777548,7.8041,128.14,128.06,23.5293188]
[1725894777841,95.0,128.13,128.08,19.5182]
[1725894778035,102.8046,128.13,128.08,27.3253]
[1725894778343,7.8052,128.12,128.08,19.5182]
[1725894778638,119.174,128.11,128.06,8.6461188]
[1725894778823,7.8065,128.1,128.06,0.8374188]
[1725894779023,52.8065,128.1,128.06,0.8374188]
[1725894779838,45.0,128.1,128.06,8.6461188]
[1725894780228,45.0,128.1,128.06,0.8374188]
[1725894780727,52.8066,128.1,128.06,0.8374188]
[1725894781131,52.8065,128.1,128.06,0.8374188]
[1725894781522,50.0,128.09,128.06,0.8374188]
[1725894781725,45.0,128.08,128.06,0.8374188]
[1725894782453,55.2196,127.9,127.8,0.8374188]
[1725894782623,55.2196,127.9,127.68,16.07240048]
[1725894782624,50.0,127.83,127.68,39.34995883]
[1725894782822,1.79275223,127.82,127.8,1.2265943]
[1725894783043,50.0,127.79,127.75,89.35625634]
[1725894783235,95.0,127.82,127.75,49.99998714]
[1725894783437,45.0,127.82,127.75,69.56908714]
[1725894783638,50.0,127.8,127.75,69.56908714]
[1725894783828,45.0,127.83,127.75,69.56908714]
[1725894784037,45.0,127.83,127.81,7.8238]
[1725894784244,45.0,127.83,127.78,19.5636]
[1725894784421,50.0,127.85,127.78,19.5636]
[1725894784422,45.0,127.84,127.78,19.5636]
[1725894784626,7.02227487,127.83,127.78,19.5636]
[1725894784824,102.02331949,127.82,127.75,49.99998714]
[1725894785031,50.0,127.8,127.75,49.99998714]
[1725894785246,45.0,127.79,127.75,49.99998714]
[1725894785647,45.0,127.79,127.76,7.8269]
[1725894785825,45.0,127.79,127.75,49.99998714]
[1725894785826,45.0,127.79,127.77,19.5657]
[1725894786042,45.0,127.79,127.77,27.3917]
[1725894786529,50.0,127.86,127.83,7.8227]
[1725894786726,7.02249559,127.85,127.83,7.8227]
[1725894787044,50.0,127.87,127.83,7.8227]
[1725894787250,7.02341926,127.86,127.81,19.5594]
[1725894787424,50.0,127.87,127.81,19.5594]
[1725894787626,7.02335916,127.86,127.82,7.8233]
[1725894787845,50.0,127.85,127.81,19.5594]
[1725894788361,50.0,127.85,127.81,27.3834]
[1725894788525,50.0,127.85,127.81,19.5594]
[1725894788722,50.0,127.83,127.77,19.5661]
[1725894788945,45.0,127.82,127.77,19.5661]
[1725894789649,45.0,127.82,127.77,27.3922]
[1725894789949,50.0,127.86,127.82,7.8231]
[1725894790144,50.0,127.86,127.81,7.8237]
[1725894790460,50.0,127.89,127.8,19.5607]
[1725894790627,50.0,127.89,127.84,7.8221]
[1725894790827,50.0,127.87,127.83,19.5563]
[1725894791028,57.8205,127.87,127.8,7.8246]
[1725894791240,50.0,127.85,127.8,7.8246]
[1725894791648,50.0,127.85,127.79,19.5625]
[1725894792352,45.0,127.84,127.81,7.8239]
[1725894793032,45.0,127.84,127.82,7.8233]
[1725894793439,45.0,127.84,127.83,7.8228]
[1725894793844,44.5117,127.84,127.81,7.8235]
[1725894794458,44.5117,127.84,127.82,7.8234]
[1725894794654,44.5117,127.84,127.79,19.5625]
[1725894794655,44.5117,127.84,127.83,7.8228]
[1725894795031,44.5117,127.84,127.82,27.3819]
[1725894795245,50.0,127.87,127.82,19.5584]
[1725894795427,50.0,127.87,127.82,27.3813]
[1725894795639,57.8204,127.87,127.82,27.3813]
[1725894796162,50.0,127.85,127.8,7.8241]
[1725894796335,50.0,127.85,127.78,19.5637]
[1725894796565,50.0,127.85,127.79,7.8247]
[1725894796743,50.0,127.85,127.78,19.5637]
[1725894796744,45.0,127.84,127.78,19.5637]
[1725894797253,50.0,127.83,127.79,7.8253]
[1725894797438,45.0,127.82,127.79,7.8253]
[1725894797846,45.0,127.83,127.8,7.8247]
[1725894798049,45.0,127.84,127.8,7.8247]
[1725894798259,45.0,127.84,127.79,7.8253]
[1725894799569,50.0,127.83,127.77,7.826]
[1725894799770,45.0,127.82,127.77,7.826]
[1725894800063,52.8236,127.82,127.77,7.826]
[1725894800251,57.8241,127.81,127.75,27.3962]
[1725894800457,45.0,127.8,127.76,7.8266]
[1725894800973,45.0,127.8,127.77,7.8265]
[1725894801262,45.0,127.8,127.76,7.8271]
[1725894801469,50.0,127.79,127.75,19.5691]
[1725894801768,45.0,127.78,127.75,19.5691]
[1725894802150,45.0,127.78,127.72,19.5737]
[1725894802353,50.0,127.77,127.72,19.5737]
[1725894802554,7.8278,127.75,127.7,7.8302]
[1725894802761,7.8272,127.76,127.71,7.8301]
[1725894803068,74.24165305,127.82,127.69,19.5783]
[1725894803069,95.0,127.75,127.69,19.5783]
[1725894803449,95.0,127.75,127.69,27.4092]
[1725894803669,102.8278,127.75,127.69,19.5783]
[1725894803858,102.8282,127.75,127.69,27.4096]
[1725894804039,7.8286,127.74,127.69,27.4096]
[1725894804239,102.8291,127.73,127.69,19.5783]
[1725894804443,45.0,127.72,127.69,19.5783]
[1725894806251,45.0,127.72,127.71,7.8302]
[1725894807465,45.0,127.72,127.7,7.8307]
[1725894807661,45.0,127.72,127.69,19.5783]
[1725894808064,45.0,127.72,127.7,7.8308]
[1725894808379,45.0,127.72,127.71,7.8302]
[1725894808868,57.8265,127.77,127.72,27.4031]
[1725894809044,50.0,127.77,127.72,27.4031]
[1725894809470,7.8273,127.76,127.72,27.403]
[1725894809643,57.8265,127.77,127.73,7.8289]
[1725894809854,57.8265,127.77,127.72,27.403]
[1725894810365,50.0,127.75,127.7,7.8307]
[1725894810547,57.8279,127.75,127.7,7.8307]
[1725894810748,57.8279,127.75,127.71,7.83]
[1725894811058,50.0,127.77,127.74,7.8283]
[1725894811264,50.0,127.79,127.74,7.8283]
[1725894811455,57.8257,127.79,127.74,7.8283]
[1725894811646,57.8257,127.79,127.73,19.5718]
[1725894811647,50.0,127.79,127.75,7.8276]
[1725894811851,6.1999,127.82,127.69,53.13055214]
[1725894812170,15.9542,127.85,127.69,53.13055214]
[1725894812171,65.9542,127.85,127.74,39.1393]
[1725894812359,57.8246,127.81,127.76,27.394]
[1725894812747,59.36405305,127.81,127.76,27.394]
[1725894812984,59.36405305,127.81,127.74,7.8279]
[1725894813266,59.36405305,127.81,127.76,7.827]
[1725894813466,7.8239,127.82,127.76,19.5679]
[1725894813649,57.828,127.83,127.77,7.826]
[1725894813959,57.8246,127.81,127.75,7.8277]
[1725894814683,52.8248,127.8,127.74,27.3982]
[1725894815047,52.8248,127.8,127.75,7.8276]
[1725894815346,52.8248,127.8,127.76,19.5669]
[1725894815347,45.0,127.8,127.76,19.5669]
[1725894815546,65.9542,127.85,127.8,7.8244]
[1725894815776,65.9542,127.85,127.76,39.1357]
[1725894815777,57.8229,127.83,127.71,92.27925214]
[1725894816065,57.8229,127.83,127.77,7.8259]
[1725894816651,7.8235,127.82,127.77,7.8259]
[1725894816859,45.0,127.81,127.77,7.8259]
[1725894817254,45.0,127.81,127.78,7.8258]
[1725894817455,45.0,127.82,127.78,7.8258]
[1725894817654,52.8235,127.82,127.77,7.8264]
[1725894818261,45.0,127.82,127.78,19.5639]
[1725894819108,45.0,127.82,127.75,19.5686]
[1725894819253,0.23549134,127.78,127.75,27.3959]
[1725894819872,0.23549134,127.78,127.72,19.5733]
[1725894820049,8.06189134,127.78,127.73,7.8285]
[1725894820362,45.0,127.77,127.73,7.8285]
[1725894821273,45.0,127.77,127.72,19.5733]
[1725894821274,52.827,127.77,127.72,27.4027]
[1725894821665,45.0,127.77,127.73,7.8289]
[1725894822168,7.02080064,127.76,127.73,7.8289]
[1725894822466,52.02080064,127.75,127.69,19.578]
[1725894822668,7.02080064,127.74,127.69,19.578]
[1725894822891,35.64864439,127.78,127.6,10.0]
[1725894822892,102.02080064,127.73,127.6,6.4409]
[1725894823099,7.832,127.68,127.61,7.8358]
[1725894823403,59.85280064,127.68,127.63,19.5877]
[1725894823690,59.85280064,127.68,127.63,27.4226]
[1725894823870,52.02080064,127.68,127.63,27.4226]
[1725894824070,52.02080064,127.68,127.64,7.8344]
[1725894825593,52.02080064,127.68,127.65,7.8339]
[1725894825790,52.02080064,127.68,127.66,7.8332]
[1725894826194,52.01152987,127.68,127.66,7.8332]
[1725894827295,52.01152987,127.68,127.66,7.66086889]
[1725894827475,52.01152987,127.67,127.66,7.66086889]
[1725894827987,7.01152987,127.67,127.66,7.66086889]
[1725894828304,28.04601854,127.67,127.66,7.66086889]
[1725894828469,7.01152987,127.67,127.66,7.66086889]
[1725894829291,7.01152987,127.67,127.66,46.82736889]
[1725894829471,21.03448867,127.68,127.66,46.82736889]
[1725894829472,21.03448867,127.68,127.67,7.8326]
[1725894829675,21.03448867,127.74,127.71,7.8297]
[1725894829891,21.03448867,127.74,127.73,7.829]
[1725894830074,50.0,127.77,127.73,7.829]
[1725894830283,50.0,127.75,127.7,19.5759]
[1725894830477,50.0,127.73,127.67,19.5813]
[1725894830996,7.831,127.7,127.64,19.5859]
[1725894831201,7.831,127.7,127.65,7.8339]
[1725894831407,45.0,127.69,127.66,7.8332]
[1725894831582,45.0,127.69,127.64,19.5859]
[1725894831778,45.0,127.69,127.64,27.4198]
[1725894831998,7.8315,127.69,127.65,7.8338]
[1725894832196,45.0,127.68,127.61,6.2173]
[1725894832502,57.828,127.69,127.61,19.5903]
[1725894832689,45.0,127.68,127.61,19.5903]
[1725894832995,50.0,127.67,127.61,19.5903]
[1725894833205,45.0,127.66,127.58,19.5954]
[1725894833505,57.8339,127.65,127.59,7.837]
[1725894833691,45.0,127.64,127.59,7.837]
[1725894833894,50.0,127.63,127.58,19.5954]
[1725894834120,45.0,127.62,127.59,7.837]
[1725894834400,0.13820579,127.61,127.59,7.8375]
[1725894834598,0.13820579,127.61,127.58,7.8381]
[1725894834783,0.13820579,127.61,127.59,7.8375]
[1725894834983,0.13820579,127.61,127.57,19.5955]
[1725894835387,50.13820579,127.61,127.55,0.8374188]
[1725894835600,50.0,127.59,127.55,0.8374188]
[1725894835801,0.13820579,127.58,127.55,0.8374188]
[1725894835980,45.13820579,127.58,127.55,0.8374188]
[1725894836181,45.13820579,127.58,127.56,7.8393]
[1725894836481,45.13820579,127.58,127.56,7.8392]
[1725894837001,45.13820579,127.58,127.55,0.8374188]
[1725894837309,0.13820579,127.58,127.57,7.8388]
[1725894839483,0.13820579,127.58,127.56,27.4376]
[1725894839888,0.13820579,127.58,127.57,7.8388]
[1725894842312,0.13820579,127.58,127.56,27.4377]
[1725894842488,0.13820579,127.58,127.57,7.8388]
[1725894849498,0.13820579,127.58,127.57,27.8388]
[1725894849709,0.13820579,127.58,127.57,7.8388]
[1725894850584,0.13820579,127.58,127.57,27.8388]
[1725894851384,0.13820579,127.58,127.57,7.8388]
[1725894851805,5.79e-06,127.58,127.57,7.8388]
[1725894851999,5.79e-06,127.58,127.57,61.07450029]
[1725894852317,50.0,127.7,127.67,27.413]
[1725894852505,50.0,127.7,127.67,19.5805]
[1725894853101,57.8308,127.7,127.67,19.5805]
[1725894853508,79.2579,127.72,127.68,7.832]
[1725894853809,71.4283,127.72,127.68,7.832]
[1725894854008,71.4283,127.72,127.69,7.8314]
[1725894854189,21.4283,127.72,127.7,7.8308]
[1725894854701,71.4283,127.72,127.68,7.8318]
[1725894855014,71.4283,127.72,127.69,7.8314]
[1725894855186,21.4283,127.72,127.69,7.8314]
[1725894855387,21.4283,127.72,127.7,7.8307]
[1725894855597,21.4283,127.72,127.69,27.4095]
[1725894855795,72.1379,127.76,127.72,7.8291]
[1725894855997,72.1379,127.76,127.71,19.5743]
[1725894856204,7.8284,127.74,127.71,19.5743]
[1725894856408,72.1379,127.76,127.71,19.5743]
[1725894856409,7.8279,127.75,127.71,19.5743]
[1725894856712,72.1379,127.76,127.72,7.8291]
[1725894856915,79.9652,127.76,127.71,27.4043]
[1725894857087,79.9652,127.76,127.71,19.5743]
[1725894857088,72.1379,127.76,127.71,19.5743]
[1725894857413,22.1379,127.76,127.73,19.5719]
[1725894857610,22.1379,127.76,127.73,27.4008]
[1725894857909,50.0,127.78,127.74,7.8283]
[1725894857910,57.8261,127.78,127.74,7.8283]
[1725894858284,57.8261,127.78,127.73,27.4008]
[1725894858710,50.0,127.78,127.73,19.5719]
[1725894858916,50.0,127.78,127.75,7.8276]
[1725894859224,6.4863,127.79,127.77,7.8261]
[1725894859389,65.5125,127.8,127.77,7.8261]
[1725894860213,65.5125,127.8,127.76,7.8269]
[1725894860625,65.5125,127.8,127.75,19.5688]
[1725894860798,7.8253,127.79,127.75,27.3965]
[1725894860998,73.3377,127.8,127.75,27.3963]
[1725894861416,45.0,127.79,127.76,7.8271]
[1725894861723,50.0,127.8,127.77,7.8261]
[1725894861934,50.0,127.8,127.75,19.5688]
[1725894862217,7.8255,127.79,127.7,39.1521]
[1725894862518,57.8249,127.8,127.75,7.8275]
[1725894862702,57.8249,127.8,127.76,7.8271]
[1725894863103,45.0,127.79,127.76,7.8271]
[1725894863313,50.0,127.8,127.77,7.8265]
[1725894863497,50.0,127.82,127.77,7.8265]
[1725894863694,57.8236,127.82,127.78,7.8258]
[1725894864302,7.8242,127.81,127.76,19.5674]
[1725894864494,57.8248,127.8,127.76,19.5674]
[1725894864699,45.0,127.79,127.76,19.5674]
[1725894865106,52.8255,127.79,127.74,7.8282]
[1725894865525,52.8255,127.79,127.75,7.8275]
[1725894865717,45.0,127.79,127.76,7.8271]
[1725894866519,45.0,127.79,127.77,7.8263]
[1725894866724,45.0,127.8,127.77,7.8263]
[1725894867022,45.0,127.8,127.75,27.3967]
[1725894867023,7.8255,127.79,127.75,27.3967]
[1725894867221,52.826,127.78,127.74,7.8283]
[1725894867429,45.0,127.77,127.74,7.8278]
[1725894867929,45.0,127.77,127.72,19.5731]
[1725894868106,45.0,127.77,127.67,55.7423]
[1725894868539,45.0,127.77,127.71,21.56557795]
[1725894868823,45.0,127.77,127.67,55.7423]
[1725894869020,45.0,127.77,127.7,20.0]
[1725894869327,52.8269,127.77,127.73,7.8286]
[1725894869710,52.8269,127.77,127.74,7.8283]
[1725894869711,45.0,127.77,127.74,7.8283]
[1725894870712,52.8266,127.77,127.73,27.401]
[1725894871412,52.8266,127.77,127.73,19.5722]
[1725894871604,45.0,127.77,127.73,19.5722]
[1725894871806,7.8271,127.76,127.73,19.5722]
[1725894872005,45.0,127.75,127.73,27.4009]
[1725894872235,52.8267,127.77,127.73,27.4009]
[1725894872613,45.0,127.77,127.74,7.8283]
[1725894873733,50.0,127.8,127.75,19.5693]
[1725894874234,7.8263,127.78,127.74,7.8283]
[1725894874529,7.8272,127.76,127.72,27.4019]
[1725894874738,7.8267,127.77,127.72,27.4019]
[1725894874910,7.8267,127.77,127.73,7.8286]
[1725894875241,45.0,127.76,127.74,7.8282]
[1725894875528,45.0,127.77,127.74,27.3991]
[1725894875736,45.0,127.77,127.75,7.8277]
[1725894875920,45.0,127.78,127.75,7.8277]
[1725894876116,102.8259,127.78,127.74,27.3991]
[1725894876323,7.8274,127.76,127.72,7.8296]
[1725894876517,45.0,127.75,127.72,7.8296]
[1725894877231,52.8278,127.75,127.72,7.8296]
[1725894877840,45.0,127.75,127.72,7.8296]
[1725894878330,57.8285,127.74,127.71,19.5748]
[1725894878533,45.0,127.73,127.71,19.5748]
[1725894878735,45.0,127.75,127.72,7.829]
[1725894878917,45.0,127.75,127.72,7.8293]
[1725894879117,50.0,127.8,127.73,19.5723]
[1725894879717,50.0,127.78,127.73,19.5723]
[1725894880035,57.8263,127.78,127.75,7.8277]
[1725894880214,57.8263,127.78,127.72,7.8296]
[1725894880215,7.8275,127.76,127.72,7.8296]
[1725894880420,45.0,127.75,127.68,44.28336331]
[1725894880638,45.0,127.75,127.73,7.8286]
[1725894880814,45.0,127.75,127.74,7.8284]
[1725894881011,70.23851943,127.8,127.74,19.5706]
[1725894881216,7.8254,127.79,127.75,7.8275]
[1725894881516,50.0,127.78,127.74,27.3987]
[1725894881737,57.8261,127.78,127.74,27.3987]
[1725894881942,7.8255,127.79,127.75,7.8277]
[1725894882142,57.8248,127.8,127.76,7.8271]
[1725894882346,7.8241,127.81,127.77,7.8263]
[1725894882638,26.29581943,127.83,127.76,19.5678]
[1725894882639,13.8803,127.83,127.78,7.8258]
[1725894882820,13.8803,127.83,127.79,7.8252]
[1725894883722,6.0573,127.83,127.78,19.5644]
[1725894883926,6.0573,127.83,127.8,7.8246]
[1725894884241,66.2903,127.84,127.81,7.824]
[1725894884411,7.8239,127.82,127.77,19.5659]
[1725894884616,9.36405305,127.81,127.77,19.5659]
[1725894884816,7.8254,127.79,127.74,27.3981]
[1725894885040,7.8264,127.78,127.74,19.5699]
[1725894885435,7.8254,127.79,127.74,27.3981]
[1725894885926,45.0,127.78,127.74,19.5699]
[1725894886130,45.0,127.79,127.76,7.8271]
[1725894887123,52.8258,127.79,127.74,27.3978]
[1725894887938,7.8268,127.77,127.73,7.829]
[1725894888132,52.8272,127.76,127.71,19.5747]
[1725894888445,45.0,127.76,127.72,7.8291]
[1725894888931,45.0,127.76,127.75,7.8277]
[1725894889936,45.0,127.76,127.73,27.4004]
[1725894890320,45.0,127.76,127.75,7.8277]
[1725894890523,45.0,127.77,127.73,19.5719]
[1725894890955,7.8268,127.77,127.73,19.5719]
[1725894891147,45.0,127.76,127.73,19.5719]
[1725894891457,45.0,127.76,127.73,27.4008]
[1725894891822,95.0,127.76,127.71,7.8301]
[1725894892037,95.0,127.76,127.7,19.5763]
[1725894892038,95.0,127.76,127.7,27.407]
[1725894892243,95.0,127.76,127.71,7.8301]
[1725894892546,7.8282,127.75,127.7,19.5763]
[1725894892744,95.0,127.76,127.71,7.8301]
[1725894892745,45.0,127.74,127.71,7.8301]
[1725894893038,95.0,127.76,127.72,7.8293]
[1725894893245,102.8273,127.76,127.71,7.8301]
[1725894893627,45.0,127.76,127.72,7.8295]
[1725894893828,45.0,127.76,127.73,7.829]
[1725894894163,50.0,127.78,127.74,7.8283]
[1725894894354,56.5041,127.8,127.74,19.5702]
[1725894895045,57.8239,127.82,127.77,7.8263]
[1725894895344,7.8241,127.81,127.77,7.8263]
[1725894895561,57.8239,127.82,127.77,7.8263]
[1725894895743,50.0,127.82,127.78,7.8258]
[1725894896320,50.0,127.82,127.79,7.8252]
[1725894896548,16.2903,127.84,127.8,7.8246]
[1725894896929,57.8218,127.85,127.8,7.8246]
[1725894897541,7.8218,127.85,127.8,7.8246]
[1725894898458,7.8223,127.84,127.79,7.8251]
[1725894898957,45.0,127.83,127.8,7.8247]
[1725894899257,45.0,127.84,127.8,7.8247]
[1725894899455,7.823,127.83,127.75,1.55345062]
[1725894899623,45.0,127.82,127.75,21.55345062]
[1725894900049,45.0,127.82,127.78,7.8258]
[1725894900228,52.8235,127.82,127.77,27.3916]
[1725894900434,57.8242,127.81,127.76,7.8267]
[1725894900664,45.0,127.82,127.76,7.8267]
[1725894900665,45.0,127.8,127.77,7.8265]
[1725894900830,45.0,127.82,127.78,7.8259]
[1725894901157,57.8217,127.85,127.8,7.8241]
[1725894901363,57.8217,127.85,127.78,19.5642]
[1725894901364,7.8224,127.84,127.79,7.8252]
[1725894901675,50.0,127.85,127.81,7.8235]
[1725894901855,7.8215,127.86,127.81,7.8235]
[1725894902161,7.8219,127.85,127.8,19.5614]
[1725894902331,50.0,127.85,127.78,7.8258]
[1725894902649,7.8236,127.82,127.77,27.3915]
[1725894902833,45.0,127.81,127.77,19.5652]
[1725894903755,45.0,127.82,127.77,19.5652]
[1725894903931,45.0,127.82,127.77,27.3916]
[1725894904255,52.8236,127.82,127.77,27.3916]
[1725894904644,7.8241,127.81,127.77,19.5652]
[1725894904845,45.0,127.8,127.77,19.5652]
[1725894905347,45.0,127.81,127.77,19.5652]
[1725894905548,45.0,127.81,127.77,27.3913]
[1725894905738,45.0,127.81,127.77,19.5652]
[1725894905931,45.0,127.81,127.79,7.8248]
[1725894906129,45.0,127.81,127.77,19.5652]
[1725894906444,50.0,127.85,127.76,44.28336331]
[1725894906755,57.8221,127.85,127.8,7.8241]
[1725894907762,50.0,127.85,127.79,19.5627]
[1725894907938,50.0,127.85,127.76,19.5674]
[1725894908141,7.8237,127.82,127.76,19.5674]
[1725894908540,57.823,127.83,127.78,7.8257]
[1725894908840,50.0,127.81,127.75,1.55345062]
[1725894909042,57.8258,127.79,127.75,1.55345062]
[1725894909348,45.0,127.78,127.75,1.55345062]
[1725894909553,45.0,127.78,127.76,7.8267]
[1725894909754,45.0,127.79,127.76,7.8267]
[1725894910275,45.0,127.79,127.75,1.55345062]
[1725894910556,7.8259,127.78,127.75,1.55345062]
[1725894910776,7.8271,127.76,127.75,1.55345062]
[1725894911057,95.0,127.77,127.75,1.55345062]
[1725894911058,45.0,127.77,127.75,1.55345062]
[1725894911239,45.0,127.78,127.75,1.55345062]
[1725894913058,6.64373168,127.77,127.75,1.55345062]
[1725894913237,51.64373168,127.76,127.75,1.55345062]
[1725894915859,6.64373168,127.76,127.75,9.38115062]
[1725894916042,6.64373168,127.76,127.75,1.55345062]
[1725894916962,14.47083168,127.76,127.75,1.55345062]
[1725894917452,51.64373168,127.76,127.75,1.55345062]
[1725894917653,59.47083168,127.76,127.75,1.55345062]
[1725894917855,52.8271,127.76,127.75,1.55345062]
[1725894918047,59.47575432,127.76,127.75,1.55345062]
[1725894919455,51.64865432,127.76,127.75,1.55345062]
[1725894921268,59.47575432,127.76,127.75,1.55345062]
[1725894921553,51.64865432,127.76,127.75,1.55345062]
[1725894922358,6.64865432,127.76,127.75,1.55345062]
[1725894923758,51.64865432,127.76,127.75,1.55345062]
[1725894923959,59.47575432,127.76,127.75,1.55345062]
[1725894929167,6.64865432,127.76,127.75,1.55345062]
[1725894929584,14.47575432,127.76,127.75,1.55345062]
[1725894930461,51.64865432,127.76,127.75,1.55345062]
[1725894930866,6.64865432,127.76,127.75,1.55345062]
[1725894931443,57.8267,127.77,127.75,1.55345062]
[1725894931843,6.65502855,127.76,127.75,1.55345062]
[1725894932662,6.65502855,127.76,127.75,9.38115062]
[1725894933560,6.65502855,127.76,127.75,1.55345062]
[1725894934569,51.65502855,127.76,127.75,1.55345062]
[1725894934781,45.0,127.76,127.75,1.55345062]
[1725894934945,51.66115078,127.76,127.75,1.55345062]
[1725894935145,59.48825078,127.76,127.75,1.55345062]
[1725894935559,51.66115078,127.76,127.75,1.55345062]
[1725894935763,59.48825078,127.76,127.75,1.55345062]
[1725894936157,109.48825078,127.76,127.75,1.55345062]
[1725894937452,51.66115078,127.76,127.75,1.55345062]
[1725894937962,45.0,127.76,127.75,1.55345062]
[1725894938456,51.66482027,127.76,127.75,1.55345062]
[1725894939152,109.49192027,127.76,127.75,1.55345062]
[1725894940481,57.8295,127.73,127.68,7.832]
[1725894940668,50.0,127.69,127.63,6.3286]
[1725894940862,14.49702027,127.68,127.63,14.1635]
[1725894941059,50.0,127.69,127.61,19.5899]
[1725894941060,7.8334,127.66,127.61,19.5899]
[1725894941269,14.49892027,127.65,127.61,19.5899]
[1725894941563,6.66482027,127.64,127.62,7.8356]
[1725894941764,6.66482027,127.63,127.62,7.8356]
[1725894941963,57.8304,127.71,127.65,19.5834]
[1725894942275,6.66825776,127.7,127.66,7.8331]
[1725894942500,6.66825776,127.69,127.66,7.8331]
[1725894942653,51.66825776,127.68,127.66,7.8331]
[1725894942851,6.66825776,127.67,127.66,7.8331]
[1725894944485,51.66825776,127.67,127.66,7.8331]
[1725894944779,7.8291,127.73,127.69,7.8314]
[1725894944962,45.0,127.72,127.69,7.8314]
[1725894945165,7.8285,127.74,127.7,7.8308]
[1725894945682,7.8285,127.74,127.69,7.8312]
[1725894946281,7.8291,127.73,127.69,7.8312]
[1725894946585,45.0,127.72,127.69,7.8312]
[1725894946763,45.0,127.73,127.69,7.8312]
[1725894947162,6.66275911,127.72,127.68,7.8315]
[1725894947464,52.8302,127.71,127.67,27.4133]
[1725894947657,7.8314,127.7,127.64,19.5853]
[1725894947877,51.66275911,127.69,127.65,7.8334]
[1725894948173,7.8334,127.66,127.62,7.8355]
[1725894948479,51.66210747,127.65,127.61,27.4258]
[1725894948657,51.66210747,127.65,127.58,19.5947]
[1725894948858,101.66210747,127.65,127.58,7.8381]
[1725894949059,7.8351,127.63,127.59,7.8375]
[1725894949393,50.0,127.61,127.57,19.5961]
[1725894949559,50.0,127.61,127.55,0.8374188]
[1725894949560,14.49541088,127.6,127.55,0.8374188]
[1725894949879,51.65841088,127.59,127.55,0.8374188]
[1725894950083,6.65841088,127.58,127.55,8.6774188]
[1725894950274,45.0,127.59,127.55,8.6774188]
[1725894951762,45.0,127.6,127.55,8.6774188]
[1725894951960,45.0,127.6,127.56,7.8392]
[1725894952183,45.0,127.6,127.55,0.8374188]
[1725894952398,52.8371,127.6,127.55,8.6771188]
[1725894953672,52.8371,127.6,127.55,0.8374188]
[1725894953879,45.0,127.6,127.56,7.8394]
[1725894954769,45.0,127.6,127.57,7.8386]
[1725894955191,45.0,127.6,127.56,7.8393]
[1725894955389,52.8371,127.6,127.56,7.8393]
[1725894955571,52.8371,127.6,127.55,8.6773188]
[1725894955770,45.0,127.6,127.56,7.8393]
[1725894956886,6.0529,127.62,127.56,7.8393]
[1725894956887,6.0529,127.62,127.58,7.8381]
[1725894957086,16.285,127.63,127.58,19.5949]
[1725894957496,16.285,127.63,127.58,27.4325]
[1725894957702,57.8351,127.64,127.58,19.5949]
[1725894957872,7.8351,127.64,127.58,19.5949]